fUSD/lending_fUSD_20240613
["ID","MTS","AMOUNT","RATE_DAILY","PERIOD"]
[329354831,1718277057774,-151.0,0.000245,7]
[329354832,1718277057787,-151.0,0.000245,7]
[329354833,1718277057800,-192.53075149,0.000245,2]
[329354834,1718277057815,-151.0,0.000245,7]
[329354835,1718277057827,-151.0,0.000245,7]
[329354836,1718277057839,-151.0,0.000245,7]
[329354837,1718277057854,-151.0,0.000245,7]
[329354838,1718277057865,-178.21143,0.000245,7]
[329354839,1718277057878,-151.0,0.000245,7]
[329354840,1718277057892,-500.0,0.000245,8]
[329354841,1718277057922,-194.953198,0.000245,7]
[329354842,1718277057949,-151.0,0.000245,7]
[329354843,1718277057959,-151.0,0.000245,7]
[329354844,1718277057969,-151.0,0.000245,7]
[329354845,1718277057980,-151.0,0.000245,7]
[329354846,1718277057998,-832.352126,0.000245,7]
[329354847,1718277058009,-832.352126,0.000245,7]
[329354848,1718277058021,-151.0,0.000245,7]
[329354849,1718277058031,-151.0,0.000245,7]
[329354850,1718277058043,-29343.739936,0.00024504,2]
[329354851,1718277058053,-150.0,0.00024521,2]
[329354852,1718277058069,-150.0,0.00024521,2]
[329354853,1718277058084,-150.0,0.00024521,2]
[329354854,1718277058095,-150.0,0.00024521,2]
[329354855,1718277058108,-700.0,0.000246,8]
[329354856,1718277058121,-323.0,0.000246,2]
[329354857,1718277058150,-500.0,0.00024656,2]
[329354858,1718277058171,-1183.25,0.00024656,2]
[329354859,1718277058198,-500.0,0.00024656,2]
[329354860,1718277058249,-704.44,0.00024656,2]
[329354861,1718277058263,-500.0,0.00024656,2]
[329354862,1718277058277,-5852.16,0.00024656,2]
[329354863,1718277058289,-2891.73,0.00024656,2]
[329354864,1718277058301,-500.0,0.00024656,2]
[329354865,1718277058312,-1318.26,0.00024656,2]
[329354866,1718277058329,-2337.62,0.00024656,2]
[329354867,1718277058341,-1185.47,0.00024656,2]
[329354868,1718277058359,-500.0,0.00024656,2]
[329354869,1718277058370,-1475.74,0.00024656,2]
[329354870,1718277058380,-572.37,0.00024656,2]
[329354871,1718277058398,-500.0,0.00024656,2]
[329354872,1718277058410,-500.0,0.00024657,2]
[329354873,1718277058434,-500.0,0.00024657,2]
[329354874,1718277058457,-500.0,0.00024657,2]
[329354875,1718277058478,-629.70136015,0.00024657,2]
[329354876,1718277058514,-500.0,0.00024657,2]
[329354877,1718277058528,-500.0,0.00024657,2]
[329354878,1718277058539,-255.20577054,0.00024657,2]
[329354879,1718277058551,-500.0,0.00024657,2]
[329354880,1718277058566,-500.0,0.00024657,2]
[329354881,1718277058578,-500.53614502,0.00024657,2]
[329354882,1718277058591,-500.0,0.00024657,2]
[329354883,1718277058603,-151.0,0.00024657,7]
[329354884,1718277058614,-500.0,0.00024657,2]
[329354885,1718277058625,-238.759834,0.00024657,7]
[329354886,1718277058642,-500.0,0.00024657,2]
[329354887,1718277058658,-519.8264183,0.00024657,2]
[329354888,1718277058669,-151.0,0.00024657,7]
[329354889,1718277058682,-500.0,0.00024657,2]
[329354890,1718277058694,-151.0,0.00024657,7]
[329354891,1718277058716,-500.0,0.00024657,2]
[329354892,1718277058731,-500.0,0.00024657,2]
[329354893,1718277058743,-500.0,0.00024657,2]
[329354894,1718277058760,-500.0,0.00024657,2]
[329354895,1718277058772,-189.254727,0.00024657,7]
[329354896,1718277058786,-153.684983,0.00024657,7]
[329354897,1718277058800,-151.0,0.00024657,7]
[329354898,1718277058812,-500.0,0.00024657,2]
[329354899,1718277058836,-189.254727,0.00024657,7]
[329354900,1718277058853,-247.0,0.00024657,7]
[329354901,1718277058867,-500.0,0.00024657,2]
[329354902,1718277058906,-500.0,0.00024657,2]
[329354903,1718277058919,-500.0,0.00024657,2]
[329354904,1718277058933,-151.0,0.00024657,7]
[329354905,1718277059061,-500.0,0.00024657,2]
[329354906,1718277059072,-500.0,0.00024657,2]
[329354907,1718277059085,-500.0,0.00024657,2]
[329354908,1718277059097,-500.0,0.00024657,2]
[329354909,1718277059110,-500.0,0.00024657,2]
[329354910,1718277059125,-500.0,0.00024657,2]
[329354911,1718277059141,-500.0,0.00024657,2]
[329354912,1718277059155,-151.0,0.00024657,7]
[329354913,1718277059167,-621.55092881,0.00024657,2]
[329354914,1718277059183,-500.0,0.00024657,2]
[329354915,1718277059199,-500.0,0.00024657,2]
[329354916,1718277059229,-500.0,0.00024657,2]
[329354917,1718277059242,-500.0,0.00024657,2]
[329354918,1718277059256,-241.429869,0.00024657,7]
[329354919,1718277059271,-500.0,0.00024657,2]
[329354920,1718277059289,-500.0,0.00024657,2]
[329354921,1718277059300,-500.0,0.00024657,2]
[329354922,1718277059311,-500.0,0.00024657,2]
[329354923,1718277059325,-500.0,0.00024657,2]
[329354924,1718277059337,-500.0,0.00024657,2]
[329354925,1718277059348,-500.0,0.00024657,2]
[329354926,1718277059364,-151.0,0.00024657,7]
[329354927,1718277059386,-500.0,0.00024657,2]
[329354928,1718277059409,-151.0,0.00024657,7]
[329354929,1718277059425,-500.0,0.00024657,2]
[329354930,1718277059436,-500.0,0.00024657,2]
[329354931,1718277059462,-151.0,0.00024657,7]
[329354932,1718277059474,-151.0,0.00024657,7]
[329354933,1718277059484,-500.0,0.00024657,2]
[329354934,1718277059496,-512.54043775,0.00024657,2]
[329354935,1718277059508,-601.42679077,0.00024657,2]
[329354936,1718277059518,-151.0,0.00024657,7]
[329354937,1718277059533,-500.0,0.00024657,2]
[329354938,1718277059545,-582.04973439,0.00024657,2]
[329354939,1718277059559,-500.0,0.00024657,2]
[329354940,1718277059571,-151.0,0.00024657,7]
[329354941,1718277059583,-208.059876,0.00024657,7]
[329354942,1718277059596,-500.0,0.00024657,2]
[329354943,1718277059611,-500.0,0.00024657,2]
[329354944,1718277059624,-151.0,0.00024657,7]
[329354945,1718277059643,-151.0,0.00024657,7]
[329354946,1718277059662,-151.0,0.00024657,7]
[329354947,1718277059679,-151.0,0.00024657,7]
[329354948,1718277059693,-151.0,0.00024657,7]
[329354949,1718277059731,-151.0,0.00024657,7]
[329354950,1718277059743,-150.0,0.00024679,10]
[329354951,1718277059757,-3563.96,0.00024679,3]
[329354952,1718277059781,-129216.31606605,0.0002468,2]
[329354953,1718277059794,-51679.66377559,0.0002468,2]
[329354954,1718277059805,-151.0,0.0002468,7]
[329354955,1718277059818,-151.0,0.0002468,7]
[329354956,1718277059837,-151.0,0.0002468,7]
[329354957,1718277059854,-189.254727,0.0002468,7]
[329354958,1718277059868,-189.254727,0.0002468,7]
[329354959,1718277059882,-270.880901,0.0002468,7]
[329354960,1718277059896,-151.0,0.0002468,7]
[329354961,1718277059909,-151.0,0.0002468,7]
[329354962,1718277059928,-151.0,0.0002468,7]
[329354963,1718277059941,-151.0,0.0002468,7]
[329354964,1718277059959,-151.0,0.0002468,7]
[329354965,1718277059980,-151.0,0.0002468,7]
[329354966,1718277059998,-244.656978,0.0002468,7]
[329354967,1718277060042,-151.0,0.0002468,7]
[329354968,1718277060054,-151.0,0.0002468,7]
[329354969,1718277060064,-151.0,0.0002468,7]
[329354970,1718277060074,-151.0,0.0002468,7]
[329354971,1718277060091,-151.0,0.0002468,7]
[329354972,1718277060103,-151.0,0.0002468,7]
[329354973,1718277060117,-151.0,0.0002468,7]
[329354974,1718277060129,-182.254394,0.0002468,7]
[329354975,1718277060139,-151.0,0.0002468,7]
[329354976,1718277060153,-151.0,0.0002468,7]
[329354977,1718277060165,-832.352126,0.0002468,7]
[329354978,1718277060175,-832.352126,0.0002468,7]
[329354979,1718277060186,-151.0,0.0002468,7]
[329354980,1718277060201,-151.0,0.0002468,7]
[329354981,1718277060224,-2274.27,0.000247,2]
[329354982,1718277060236,-1000.0,0.000247,9]
[329354983,1718277060254,-628.5,0.0002477,3]
[329354984,1718277060265,-577.7418338,0.0002477,3]
[329354985,1718277060276,-877.35,0.0002477,3]
[329354986,1718277060288,-1070.7,0.0002477,3]
[329354987,1718277060301,-500.0,0.0002477,3]
[329354988,1718277060312,-871.84,0.0002477,3]
[329354989,1718277060325,-1196.79,0.0002477,3]
[329354990,1718277060335,-748.9,0.0002477,3]
[329354991,1718277060347,-2448.85,0.0002477,3]
[329354992,1718277060358,-1584.05,0.0002477,3]
[329354993,1718277060368,-875.77,0.0002477,3]
[329354994,1718277060386,-896.33,0.0002477,3]
[329354995,1718277060396,-1393.21,0.0002477,3]
[329354996,1718277060406,-712.29,0.0002477,3]
[329354997,1718277060426,-3021.74,0.0002477,3]
[329354998,1718277060452,-2955.13,0.0002477,3]
[329354999,1718277060471,-1592.21,0.0002477,3]
[329355000,1718277060482,-1489.31,0.0002477,3]
[329355001,1718277060493,-1351.15,0.0002477,3]
[329355002,1718277060507,-1841.9,0.0002477,3]
[329355003,1718277060524,-1097.22,0.0002477,3]
[329355004,1718277060545,-500.0,0.0002477,3]
[329355005,1718277060560,-1562.15,0.0002477,3]
[329355006,1718277060576,-500.0,0.0002477,3]
[329355007,1718277060594,-500.0,0.0002477,3]
[329355008,1718277060612,-500.0,0.0002477,3]
[329355009,1718277060624,-508.43858234,0.0002477,3]
[329355010,1718277060643,-500.0,0.0002477,3]
[329355011,1718277060676,-500.0,0.0002477,3]
[329355012,1718277060687,-500.0,0.0002477,3]
[329355013,1718277060703,-500.0,0.0002477,3]
[329355014,1718277060728,-500.0,0.0002477,3]
[329355015,1718277060738,-150.0,0.00024771,10]
[329355016,1718277060758,-1074.6,0.00024771,3]
[329355017,1718277060776,-31357.31,0.00024771,3]
[329355018,1718277060813,-1670.36,0.00024771,3]
[329355019,1718277060824,-1382.88,0.00024771,3]
[329355020,1718277060838,-739.94,0.00024771,3]
[329355021,1718277060879,-892.4,0.00024771,3]
[329355022,1718277060906,-1184.9,0.00024771,3]
[329355023,1718277060920,-585.64,0.00024771,3]
[329355024,1718277060937,-929.82,0.00024771,3]
[329355025,1718277060961,-3563.96,0.00024771,3]
[329355026,1718277060974,-623.27,0.00024771,3]
[329355027,1718277061001,-1120.48,0.00024771,3]
[329355028,1718277061034,-150.0,0.00024772,10]
[329355029,1718277061069,-620.38643379,0.00024772,3]
[329355030,1718277061090,-500.0,0.00024772,3]
[329355031,1718277061106,-276.7010049,0.00024772,3]
[329355032,1718277061126,-500.0,0.00024772,3]
[329355033,1718277061144,-500.0,0.00024772,3]
[329355034,1718277061159,-500.0,0.00024772,3]
[329355035,1718277061177,-500.0,0.00024772,3]
[329355036,1718277061190,-500.0,0.00024772,3]
[329355037,1718277061223,-500.0,0.00024772,3]
[329355038,1718277061238,-500.0,0.00024772,3]
[329355039,1718277061257,-500.0,0.00024772,3]
[329355040,1718277061291,-500.0,0.00024772,3]
[329355041,1718277061314,-500.0,0.00024772,3]
[329355042,1718277061341,-500.0,0.00024772,3]
[329355043,1718277061351,-500.0,0.00024772,3]
[329355044,1718277061365,-500.0,0.00024772,3]
[329355045,1718277061386,-500.0,0.00024772,3]
[329355046,1718277061411,-500.0,0.00024772,3]
[329355047,1718277061467,-500.0,0.00024772,3]
[329355048,1718277061478,-500.0,0.00024772,3]
[329355049,1718277061492,-500.0,0.00024772,3]
[329355050,1718277061510,-500.0,0.00024772,3]
[329355051,1718277061521,-564.36822836,0.00024772,3]
[329355052,1718277061535,-500.0,0.00024772,3]
[329355053,1718277061548,-500.0,0.00024772,3]
[329355054,1718277061561,-500.0,0.00024772,3]
[329355055,1718277061582,-500.0,0.00024772,3]
[329355056,1718277061602,-500.0,0.00024772,3]
[329355057,1718277061627,-500.0,0.00024772,3]
[329355058,1718277061650,-500.0,0.00024772,3]
[329355059,1718277061687,-500.0,0.00024772,3]
[329355060,1718277061709,-500.0,0.00024772,3]
[329355061,1718277061734,-500.0,0.00024772,3]
[329355062,1718277061755,-500.0,0.00024772,3]
[329355063,1718277061780,-500.0,0.00024772,3]
[329355064,1718277061797,-500.0,0.00024772,3]
[329355065,1718277061812,-500.0,0.00024772,3]
[329355066,1718277061831,-500.0,0.00024772,3]
[329355067,1718277061855,-500.0,0.00024772,3]
[329355068,1718277061884,-500.0,0.00024772,3]
[329355069,1718277061901,-500.0,0.00024772,3]
[329355070,1718277061951,-500.0,0.00024772,3]
[329355071,1718277061972,-500.0,0.00024772,3]
[329355072,1718277061987,-653.07,0.00024772,3]
[329355073,1718277062001,-500.0,0.00024772,3]
[329355074,1718277062014,-500.0,0.00024772,3]
[329355075,1718277062027,-500.0,0.00024772,3]
[329355076,1718277062050,-500.0,0.00024772,3]
[329355077,1718277062068,-500.0,0.00024772,3]
[329355078,1718277062098,-500.0,0.00024772,3]
[329355079,1718277062123,-526.80831885,0.00024772,3]
[329355080,1718277062136,-500.0,0.00024772,3]
[329355081,1718277062149,-500.0,0.00024772,3]
[329355082,1718277062160,-500.0,0.00024772,3]
[329355083,1718277062171,-526.91632483,0.00024772,3]
[329355084,1718277062182,-500.0,0.00024772,3]
[329355085,1718277062208,-1199.36,0.00024772,3]
[329355086,1718277062230,-500.0,0.00024772,3]
[329355087,1718277062241,-500.0,0.00024772,3]
[329355088,1718277062253,-500.0,0.00024772,3]
[329355089,1718277062266,-500.0,0.00024772,3]
[329355090,1718277062277,-500.0,0.00024772,3]
[329355091,1718277062288,-500.0,0.00024772,3]
[329355092,1718277062304,-500.0,0.00024772,3]
[329355093,1718277062319,-500.0,0.00024772,3]
[329355094,1718277062334,-500.0,0.00024772,3]
[329355095,1718277062351,-500.0,0.00024772,3]
[329355096,1718277062373,-500.0,0.00024772,3]
[329355097,1718277062389,-500.0,0.00024772,3]
[329355098,1718277062402,-500.0,0.00024772,3]
[329355099,1718277062431,-500.0,0.00024772,3]
[329355100,1718277062470,-500.0,0.00024772,3]
[329355101,1718277062494,-500.0,0.00024772,3]
[329355102,1718277062508,-500.0,0.00024772,3]
[329355103,1718277062521,-500.0,0.00024772,3]
[329355104,1718277062539,-500.0,0.00024772,3]
[329355105,1718277062559,-500.0,0.00024772,3]
[329355106,1718277062570,-500.0,0.00024772,3]
[329355107,1718277062590,-760.53,0.00024772,3]
[329355108,1718277062604,-500.0,0.00024772,3]
[329355109,1718277062616,-500.0,0.00024772,3]
[329355110,1718277062628,-500.0,0.00024772,3]
[329355111,1718277062640,-300.0,0.00024772,3]
[329355112,1718277062655,-500.0,0.00024772,3]
[329355113,1718277062667,-500.0,0.00024772,3]
[329355114,1718277062681,-500.0,0.00024772,3]
[329355115,1718277062692,-500.0,0.00024772,3]
[329355116,1718277062716,-500.0,0.00024772,3]
[329355117,1718277062728,-500.0,0.00024772,3]
[329355118,1718277062754,-500.0,0.00024772,3]
[329355119,1718277062767,-500.0,0.00024772,3]
[329355120,1718277062779,-193.14884163,0.00024772,3]
[329355121,1718277062790,-500.0,0.00024772,3]
[329355122,1718277062805,-500.0,0.00024772,3]
[329355123,1718277062820,-500.0,0.00024772,3]
[329355124,1718277062853,-500.0,0.00024772,3]
[329355125,1718277062869,-500.0,0.00024772,3]
[329355126,1718277062882,-500.0,0.00024772,3]
[329355127,1718277062894,-1016.21,0.00024772,3]
[329355128,1718277062905,-520.19938821,0.00024772,3]
[329355129,1718277062926,-500.0,0.00024772,3]
[329355130,1718277062945,-500.0,0.00024772,3]
[329355131,1718277063074,-500.0,0.00024772,3]
[329355132,1718277063102,-500.0,0.00024772,3]
[329355133,1718277063117,-500.0,0.00024772,3]
[329355134,1718277063136,-566.49349236,0.00024772,3]
[329355135,1718277063150,-462.67738036,0.00024772,3]
[329355136,1718277063179,-803.45,0.00024772,3]
[329355137,1718277063222,-500.0,0.00024772,3]
[329355138,1718277063256,-500.0,0.00024772,3]
[329355139,1718277063269,-500.0,0.00024772,3]
[329355140,1718277063287,-500.0,0.00024772,3]
[329355141,1718277063299,-500.0,0.00024772,3]
[329355142,1718277063352,-500.0,0.00024772,3]
[329355143,1718277063368,-500.0,0.00024772,3]
[329355144,1718277063385,-500.0,0.00024772,3]
[329355145,1718277063412,-193.21003253,0.00024772,3]
[329355146,1718277063445,-913.83,0.00024772,3]
[329355147,1718277063468,-500.0,0.00024772,3]
[329355148,1718277063498,-500.0,0.00024772,3]
[329355149,1718277063535,-485.30408555,0.00024772,3]
[329355150,1718277063556,-500.0,0.00024772,3]
[329355151,1718277063588,-878.65,0.00024772,3]
[329355152,1718277063617,-2296.66,0.00024772,3]
[329355153,1718277063642,-435.94018683,0.00024772,3]
[329355154,1718277063673,-500.0,0.00024772,3]
[329355155,1718277063689,-762.45,0.00024772,3]
[329355156,1718277063704,-500.0,0.00024772,3]
[329355157,1718277063733,-555.03,0.00024772,3]
[329355158,1718277063751,-1924.86,0.00024772,3]
[329355159,1718277063772,-500.0,0.00024772,3]
[329355160,1718277063789,-500.0,0.00024772,3]
[329355161,1718277063801,-1949.34,0.00024772,3]
[329355162,1718277063825,-573.8670532,0.00024772,3]
[329355163,1718277063835,-500.0,0.00024772,3]
[329355164,1718277063853,-3080.34,0.00024772,3]
[329355165,1718277063864,-500.0,0.00024772,3]
[329355166,1718277063876,-500.0,0.00024772,3]
[329355167,1718277063889,-329.63657551,0.00024772,3]
[329355168,1718277063902,-404.2385446,0.00024772,3]
[329355169,1718277063914,-500.0,0.00024772,3]
[329355170,1718277063928,-12122.07,0.00024772,3]
[329355171,1718277063941,-151.0,0.00024772,7]
[329355172,1718277063954,-500.0,0.00024772,3]
[329355173,1718277063981,-500.0,0.00024772,3]
[329355174,1718277063996,-416.01983758,0.00024772,3]
[329355175,1718277064006,-907.62,0.00024772,3]
[329355176,1718277064017,-151.0,0.00024772,7]
[329355177,1718277064028,-525.39,0.00024772,3]
[329355178,1718277064040,-151.0,0.00024772,7]
[329355179,1718277064059,-500.0,0.00024772,3]
[329355180,1718277064079,-500.0,0.00024772,3]
[329355181,1718277064090,-985.91,0.00024772,3]
[329355182,1718277064103,-510.24326501,0.00024772,3]
[329355183,1718277064116,-500.0,0.00024772,3]
[329355184,1718277064137,-230.87731148,0.00024772,3]
[329355185,1718277064168,-500.0,0.00024772,3]
[329355186,1718277064181,-2729.07,0.00024772,3]
[329355187,1718277064206,-217.97447655,0.00024772,3]
[329355188,1718277064228,-500.0,0.00024772,3]
[329355189,1718277064242,-437.73629518,0.00024772,3]
[329355190,1718277064257,-3064.01,0.00024772,3]
[329355191,1718277064278,-354.54694528,0.00024772,3]
[329355192,1718277064293,-640.1,0.00024772,3]
[329355193,1718277064312,-370.57890009,0.00024772,3]
[329355194,1718277064327,-507.52859072,0.00024772,3]
[329355195,1718277064344,-832.352126,0.00024772,7]
[329355196,1718277064364,-500.0,0.00024772,3]
[329355197,1718277064379,-500.0,0.00024772,3]
[329355198,1718277064406,-832.352126,0.00024772,7]
[329355199,1718277064431,-505.00103892,0.00024772,3]
[329355200,1718277064475,-151.0,0.00024772,7]
[329355201,1718277064487,-500.0,0.00024772,3]
[329355202,1718277064502,-500.0,0.00024772,3]
[329355203,1718277064521,-151.0,0.00024772,7]
[329355204,1718277064533,-500.0,0.00024772,3]
[329355205,1718277064544,-567.77188833,0.00024772,3]
[329355206,1718277064560,-500.0,0.00024772,3]
[329355207,1718277064581,-2850.36,0.00024772,3]
[329355208,1718277064626,-500.0,0.00024773,3]
[329355209,1718277064637,-500.0,0.00024773,3]
[329355210,1718277064649,-500.0,0.00024773,3]
[329355211,1718277064663,-500.0,0.00024773,3]
[329355212,1718277064678,-220.8,0.00024773,3]
[329355213,1718277064690,-500.0,0.00024773,3]
[329355214,1718277064709,-500.0,0.00024773,3]
[329355215,1718277064721,-500.0,0.00024773,3]
[329355216,1718277064735,-500.0,0.00024773,3]
[329355217,1718277064749,-500.0,0.00024773,3]
[329355218,1718277064760,-500.0,0.00024773,3]
[329355219,1718277064776,-500.0,0.00024773,3]
[329355220,1718277064800,-500.0,0.00024773,3]
[329355221,1718277064814,-500.0,0.00024773,3]
[329355222,1718277064829,-500.0,0.00024773,3]
[329355223,1718277064842,-500.0,0.00024773,3]
[329355224,1718277064856,-500.0,0.00024773,3]
[329355225,1718277064877,-500.0,0.00024773,3]
[329355226,1718277064896,-500.0,0.00024773,3]
[329355227,1718277064920,-500.0,0.00024773,3]
[329355228,1718277064935,-500.0,0.00024773,3]
[329355229,1718277064955,-500.0,0.00024773,3]
[329355230,1718277064973,-500.0,0.00024773,3]
[329355231,1718277064995,-543.44,0.00024773,3]
[329355232,1718277065012,-500.0,0.00024773,3]
[329355233,1718277065029,-500.0,0.00024773,3]
[329355234,1718277065051,-500.0,0.00024773,3]
[329355235,1718277065070,-500.0,0.00024773,3]
[329355236,1718277065098,-500.0,0.00024773,3]
[329355237,1718277065113,-500.0,0.00024773,3]
[329355238,1718277065128,-500.0,0.00024773,3]
[329355239,1718277065140,-500.0,0.00024773,3]
[329355240,1718277065155,-500.0,0.00024773,3]
[329355241,1718277065167,-580.81729323,0.00024773,3]
[329355242,1718277065179,-500.0,0.00024773,3]
[329355243,1718277065196,-500.0,0.00024773,3]
[329355244,1718277065231,-500.0,0.00024773,3]
[329355245,1718277065245,-500.0,0.00024773,3]
[329355246,1718277065258,-556.97863417,0.00024773,3]
[329355247,1718277065270,-566.11792599,0.00024773,3]
[329355248,1718277065281,-500.0,0.00024773,3]
[329355249,1718277065293,-500.0,0.00024773,3]
[329355250,1718277065304,-500.0,0.00024773,3]
[329355251,1718277065318,-500.0,0.00024773,3]
[329355252,1718277065334,-500.0,0.00024773,3]
[329355253,1718277065345,-559.07484954,0.00024773,3]
[329355254,1718277065364,-545.19,0.00024773,3]
[329355255,1718277065380,-500.0,0.00024773,3]
[329355256,1718277065396,-500.0,0.00024773,3]
[329355257,1718277065409,-500.0,0.00024773,3]
[329355258,1718277065432,-500.0,0.00024773,3]
[329355259,1718277065457,-500.0,0.00024773,3]
[329355260,1718277065476,-500.0,0.00024773,3]
[329355261,1718277065503,-500.0,0.00024773,3]
[329355262,1718277065531,-570.7721658,0.00024773,3]
[329355263,1718277065556,-500.0,0.00024773,3]
[329355264,1718277065576,-549.53624949,0.00024773,3]
[329355265,1718277065607,-500.0,0.00024773,3]
[329355266,1718277065633,-500.0,0.00024773,3]
[329355267,1718277065646,-500.0,0.00024773,3]
[329355268,1718277065659,-866.32,0.00024773,3]
[329355269,1718277065685,-500.0,0.00024773,3]
[329355270,1718277065704,-500.0,0.00024773,3]
[329355271,1718277065731,-500.0,0.00024773,3]
[329355272,1718277065742,-450.89688275,0.00024773,3]
[329355273,1718277065756,-554.24,0.00024773,3]
[329355274,1718277065770,-500.0,0.00024773,3]
[329355275,1718277065784,-500.0,0.00024773,3]
[329355276,1718277065812,-538.87368316,0.00024773,3]
[329355277,1718277065832,-500.0,0.00024773,3]
[329355278,1718277065853,-500.0,0.00024773,3]
[329355279,1718277065865,-500.0,0.00024773,3]
[329355280,1718277065878,-546.59283142,0.00024773,3]
[329355281,1718277065890,-500.0,0.00024773,3]
[329355282,1718277065912,-794.39,0.00024773,3]
[329355283,1718277065928,-500.0,0.00024773,3]
[329355284,1718277065940,-500.0,0.00024773,3]
[329355285,1718277065952,-500.0,0.00024773,3]
[329355286,1718277065969,-500.0,0.00024773,3]
[329355287,1718277065984,-554.35806276,0.00024773,3]
[329355288,1718277066002,-500.0,0.00024773,3]
[329355289,1718277066017,-500.0,0.00024773,3]
[329355290,1718277066036,-500.0,0.00024773,3]
[329355291,1718277066054,-500.0,0.00024773,3]
[329355292,1718277066073,-520.7940933,0.00024773,3]
[329355293,1718277066084,-500.0,0.00024773,3]
[329355294,1718277066096,-500.0,0.00024773,3]
[329355295,1718277066108,-500.0,0.00024773,3]
[329355296,1718277066123,-500.0,0.00024773,3]
[329355297,1718277066145,-500.0,0.00024773,3]
[329355298,1718277066180,-200.0,0.00024773,3]
[329355299,1718277066220,-190.09572,0.00024773,7]
[329355300,1718277066235,-500.0,0.00024773,3]
[329355301,1718277066256,-555.7,0.00024773,3]
[329355302,1718277066267,-509.1471944,0.00024773,3]
[329355303,1718277066280,-500.0,0.00024773,3]
[329355304,1718277066307,-500.0,0.00024773,3]
[329355305,1718277066328,-500.0,0.00024773,3]
[329355306,1718277066345,-500.0,0.00024773,3]
[329355307,1718277066359,-581.60793332,0.00024773,3]
[329355308,1718277066375,-500.0,0.00024773,3]
[329355309,1718277066393,-570.41372846,0.00024773,3]
[329355310,1718277066411,-1106.58,0.00024773,3]
[329355311,1718277066428,-500.0,0.00024773,3]
[329355312,1718277066439,-500.0,0.00024773,3]
[329355313,1718277066467,-500.0,0.00024773,3]
[329355314,1718277066478,-500.0,0.00024773,3]
[329355315,1718277066489,-500.0,0.00024773,3]
[329355316,1718277066499,-500.0,0.00024773,3]
[329355317,1718277066522,-500.0,0.00024773,3]
[329355318,1718277066541,-500.0,0.00024773,3]
[329355319,1718277066553,-553.15964105,0.00024773,3]
[329355320,1718277066564,-500.0,0.00024773,3]
[329355321,1718277066591,-533.4289957,0.00024773,3]
[329355322,1718277066609,-283.47,0.00024773,3]
[329355323,1718277066637,-500.0,0.00024773,3]
[329355324,1718277066657,-500.0,0.00024773,3]
[329355325,1718277066684,-500.0,0.00024773,3]
[329355326,1718277066698,-254.2148084,0.00024773,3]
[329355327,1718277066712,-500.0,0.00024773,3]
[329355328,1718277066723,-151.0,0.00024773,7]
[329355329,1718277066735,-500.0,0.00024773,3]
[329355330,1718277066747,-500.0,0.00024773,3]